Cogmind - Beta 15 @@@ ROGUE MODE // 2025.08.05 @ 07:35:18 Player: DURANDAL Result: Destroyed by as-02831 with Assembled F-torch Performance ------------- Evolutions (1) 500 Regions Visited (3) 600 Robots Destroyed (37) 185 Value Destroyed (1018) 1018 Prototype IDs (1) 20 Alien Tech Used (0) 0 Bonus (0) 0 TOTAL SCORE: 2323 Bonus ------- None Cogmind --------- Core Integrity 0/400 Matter 366/400 Energy 68/100 System Corruption 2% Temperature Cool (52) Movement Core (500) Ox9 Location -9/Mines Parts ------- > --- POWER (1) -------- (None) > --- PROPULSION (3) --- (None) > --- UTILITY (3) ------ Heat Sink Large Storage Unit Medium Matter Pod > --- WEAPON (2) ------- Heavy Assault Rifle Improved Assault Rifle > --- INVENTORY (15) --- Ion Engine Ion Engine Light Treads Light Treads Improved Heat Sink Small Storage Unit Signal Interpreter Medium Laser Medium Laser Light Assault Rifle Mini Grenade Launcher Mining Laser Peak State ------------ > --- POWER ------------ Improved Ion Engine > --- PROPULSION ------- Light Treads Light Treads Light Treads > --- UTILITY ---------- Large Storage Unit Visual Processing Unit Light Armor Plating > --- WEAPON ----------- Heavy Assault Rifle Improved Assault Rifle > --- INVENTORY -------- Ion Engine Ion Engine Heat Sink Improved Heat Sink Small Storage Unit Signal Interpreter Medium Laser Medium Laser Mini Grenade Launcher [Rating: 15] Favorites ----------- Power Ion Engine Engine Ion Engine Propulsion Light Treads Treads Light Treads Flight Unit Flight Unit Utility Small Storage Unit Device Heat Sink Storage Small Storage Unit Processor Visual Processing Unit Hackware Hacking Suite Protection Light Armor Plating Weapon Light Assault Rifle Energy Gun Medium Laser Ballistic Gun Light Assault Rifle Build | -11 -10 -9 -9 ------- Run | Yrd Mat Mat Min Slots Evolved 2 | . . 2 . Power . | . . . . Propulsion 1 | . . 1 . Utility 1 | . . 1 . Weapon . | . . . . Parts Attached 24 | 6 4 12 2 Power 2 | 1 . 1 . Engine 2 | 1 . 1 . Core . | . . . . Reactor . | . . . . Propulsion 6 | 2 . 4 . Treads 5 | 2 . 3 . Leg . | . . . . Wheel . | . . . . Hover . | . . . . Flight 1 | . . 1 . Utility 8 | 1 1 5 1 Device 2 | . 1 1 . Storage 3 | 1 . 1 1 Processor 1 | . . 1 . Hackware 1 | . . 1 . Protection 1 | . . 1 . Artifact . | . . . . Weapon 8 | 2 3 2 1 Energy Gun 3 | 2 1 . . Energy Cannon . | . . . . Ballistic Gun 5 | . 2 2 1 Ballistic Cannon . | . . . . Launcher . | . . . . Special Weapon . | . . . . Impact Weapon . | . . . . Slashing Weapon . | . . . . Piercing Weapon . | . . . . Special Melee Weapon . | . . . . Unidentified Prototypes 1 | . . 1 . Parts Lost 13 | . 2 5 6 Power 1 | . . 1 . Propulsion 5 | . 1 1 3 Utility 4 | . 1 1 2 Weapon 3 | . . 2 1 Highest Loss Streak 5 | . 1 3 5 To Critical Strikes . | . . . . Average Backups 7 | 1 6 7 12 Power 1 | . 1 1 2 Propulsion . | . . . 1 Utility 2 | . 2 2 4 Weapon 3 | . 3 3 5 Tool/Special . | . . . . Unused Backups 9 | . 1 1 7 Power 1 | . . . 1 Propulsion 2 | . . . 2 Utility 3 | . 1 . 2 Weapon 3 | . . 1 2 Tool/Special . | . . . . Average Slot Usage (%) 86 | . 88 86 81 Engine 10 | . 14 10 . Treads 21 | . 21 18 30 Flight 1 | . . 3 . Device 4 | . 9 1 . Storage 13 | . 14 11 17 Processor 5 | . . 10 10 Hackware 1 | . . 3 . Protection 2 | . . 4 . Energy Gun 5 | . 11 2 . Ballistic Gun 18 | . 16 19 22 Peak Build Rating 15 | 6 7 15 13 Average Rating 9 | 4 6 11 12 On Entrance 6 | . 6 6 13 Naked Turns . | . . . . Heaviest Build 36 | 14 15 36 29 Greatest Support 60 | 40 40 60 60 Greatest Overweight (x) 3 | . . 3 . Average Overweight (x) . | . . . . Largest Inventory Capacity 15 | 8 8 15 15 Average Capacity 10 | 7 8 10 15 Most Carried 14 | 4 8 12 14 Average Carried 7 | 1 6 7 12 Final Capacity 15 | 8 8 15 15 Final Carried 12 | 2 8 12 12 Class Distribution -------------------- 50% | Scavenger-Mutant 49% | Mutant Dominant Class ---------------- Mutant | -10/Materials Scavenger-Mutant | -9/Materials Scavenger-Mutant | -9/Mines Resources | -11 -10 -9 -9 ----------- Run | Yrd Mat Mat Min Matter Collected 785 | 161 169 253 202 Remotely . | . . . . Salvage Created 1195 | . 418 475 302 Parts 77 | . 28 30 19 Haulers Intercepted . | . . . . Recyclers Shooed 4 | . 1 3 . Parts Field Recycled . | . . . . Retrieved Matter . | . . . . Parts Self-Destructed . | . . . . Prevented . | . . . . Kills | -11 -10 -9 -9 ------- Run | Yrd Mat Mat Min Combat Hostiles Destroyed 35 | . 12 13 10 Guns 34 | . 12 12 10 AOE 1 | . . 1 . Classes Destroyed 8 | . 4 2 2 Worker 1 | . . 1 . Operator 2 | . 1 1 . Watcher 1 | . 1 . . Swarmer 10 | . 3 4 3 Grunt 19 | . 9 6 4 Brawler 1 | . . . 1 Sentry 3 | . . 3 . Assembled 2 | . . . 2 Best Kill Streak 4 | . 3 4 3 Combat Bots Only 4 | . 3 4 3 Max Kills in Single Turn 2 | . 1 1 2 Gunslinging 1 | . . . 1 Exploded 1 | . . 1 . Melee . | . . . . Uniques/NPCs Destroyed . | . . . . Combat | -11 -10 -9 -9 -------- Run | Yrd Mat Mat Min Hostile Shots Fired 225 | . 59 84 82 Missed 64 | . 16 24 24 Hits 161 | . 43 60 58 Melee 3 | . . . 3 Projectile 158 | . 43 60 55 Critical Strikes 4 | . 1 . 3 Part Disruptions 3 | . . 1 2 Damage Taken 1942 | . 482 733 727 Core 457 | . 54 133 270 Absorbed by Shields . | . . . . Core Remaining (%) 89 | 100 78 . . Volleys Fired 134 | . 73 38 23 Largest 2 | . 2 2 2 Hottest 100 | . 100 100 46 Shots Fired 244 | . 127 75 42 Gun 244 | . 127 75 42 Cannon . | . . . . Launcher . | . . . . Special . | . . . . Kinetic 189 | . 80 67 42 Thermal 52 | . 44 8 . Explosive . | . . . . Electromagnetic 3 | . 3 . . Robot Hit Streak 16 | . 16 11 14 Robot Miss Streak 5 | . 5 3 3 Penetration Max . | . . . . Secondary Targets 4 | . 1 2 1 Max Gunslinging Chain 1 | . 1 1 1 Shots Hit Robots 167 | . 83 53 31 Core Hits 79 | . 39 23 17 Critical Kills 1 | . 1 . . Critical Parts Destroyed . | . . . . Critical Strikes 2 | . 2 . . Burn 1 | . 1 . . Destroy 1 | . 1 . . Melee Attacks . | . . . . Impact . | . . . . Slashing . | . . . . Piercing . | . . . . Sneak Attacks . | . . . . Combat Hostiles . | . . . . Follow-up Attacks . | . . . . Damage Inflicted 2089 | . 845 703 541 Guns 1996 | . 808 647 541 Cannons . | . . . . Explosions . | . . . . Melee . | . . . . Ramming 93 | . 37 56 . Kinetic 1529 | . 430 558 541 Thermal 452 | . 363 89 . Explosive . | . . . . Electromagnetic 15 | . 15 . . Impact . | . . . . Slashing . | . . . . Piercing . | . . . . Highest Corruption 2 | . . 2 2 Average Corruption 2 | . . 2 2 Corruption Purged . | . . . . Corruption Blocked . | . . . . Effects 10 | . . 8 2 Message Errors 4 | . . 3 1 Matter Fused 1 | . . . 1 Heat Flow Errors 1 | . . 1 . Energy Discharges 1 | . . 1 . Data Loss (minor) 2 | . . 2 . Misfires 1 | . . 1 . Overload Shots . | . . . . Overflow Damage 1 | . . 1 . Projectiles . | . . . . Explosions . | . . . . Melee 1 | . . 1 . Knockbacks 1 | . 1 . . Impact 1 | . 1 . . Kinetic . | . . . . Secondary . | . . . . Self-Inflicted Damage 2 | . . 2 . Shots . | . . . . Rammed 26 | . 16 10 . Targets Rammed 27 | . 16 11 . Kicked . | . . . . Crushed 1 | . . 1 . Highest Temperature 307 | . 307 210 95 Average Temperature 84 | . 112 35 34 Received Heat Transfer 870 | . 249 285 336 Effects 3 | . 3 . . Energy Bleed 1 | . 1 . . Interference 2 | . 2 . . Siege Activations . | . . . . Martial Activations . | . . . . Shielding Activations . | . . . . Robots Disrupted . | . . . . Combat Hostiles . | . . . . Robots Corrupted 1 | . . 1 . Combat Hostiles . | . . . . Parts Fried . | . . . . Impact Corruptions 1 | . . 1 . Robots Melted . | . . . . Combat Hostiles . | . . . . Parts Melted 3 | . 3 . . Heat Transferred 1406 | . 1147 259 . Parts Sabotaged . | . . . . Parts Stolen . | . . . . Parts Stripped . | . . . . Power Chain Reactions . | . . . . Alert | -11 -10 -9 -9 ------- Run | Yrd Mat Mat Min Maximum Alert Level . | . . . . Low Security (%) 100 | 100 100 100 100 Level 1 . | . . . . Level 2 . | . . . . Level 3 . | . . . . Level 4 . | . . . . Level 5 . | . . . . High Security . | . . . . Max Security . | . . . . Peak Influence 150 | . 150 123 143 Initial 43 | . . 31 43 Average 51 | . 63 31 95 Influence Increases 984 | . 393 401 190 Destroy 0b10 Robot/C 660 | . 240 260 160 Destroy 0b10 Robot/NC 20 | . 10 10 . Destroy Leader 142 | . 52 60 30 Successful Hack 11 | . . 11 . Destroy Structure 1 | . 1 . . Lose Combat Pursuer 150 | . 90 60 . Influence Decreases 921 | . 318 365 238 Entered New Map 112 | . . 44 68 Time Decay 679 | . 298 271 110 Lost Part 130 | . 20 50 60 Squads Dispatched 6 | . 3 3 . Investigation 1 | . . 1 . Extermination . | . . . . Reinforcement 5 | . 3 2 . Assault . | . . . . Garrison . | . . . . Intercept . | . . . . Searches Triggered . | . . . . Construction Impeded . | . . . . Haulers Reinforced . | . . . . Active Scanning Responses . | . . . . Cargo Convoy Interrupts . | . . . . Stealth | -11 -10 -9 -9 --------- Run | Yrd Mat Mat Min Distress Signals 6 | . 3 3 . Communications Jammed . | . . . . Distress Signals . | . . . . Times Spotted 86 | . 32 28 26 Peak Tracking Total 16 | . 6 5 16 Tactical Retreats 8 | . 5 3 . Traps | -11 -10 -9 -9 ------- Run | Yrd Mat Mat Min Traps Triggered 1 | . . 1 . Indirectly . | . . . . Trap Hack Attempts . | . . . . Triggered . | . . . . Disarmed . | . . . . Reprogrammed . | . . . . Reused . | . . . . Traps Extracted . | . . . . Installed . | . . . . Triggered . | . . . . Machines | -11 -10 -9 -9 ---------- Run | Yrd Mat Mat Min Machines Disabled . | . . . . Max in Single Turn . | . . . . Machines Repaired . | . . . . Machines Dismantled . | . . . . Machines Sabotaged . | . . . . Overloaded Fab Kills . | . . . . Hacking | -11 -10 -9 -9 --------- Run | Yrd Mat Mat Min Machines Accessed 4 | . 2 2 . Terminals 3 | . 1 2 . Fabricators . | . . . . Repair Stations . | . . . . Recycling Units 1 | . 1 . . Scanalyzers . | . . . . Garrison Access . | . . . . Total Hacks 8 | . 4 4 . Successful 4 | . 2 2 . Failed 4 | . 2 2 . Catastrophic . | . . . . Database Lockouts . | . . . . Manual 7 | . 3 4 . Terminals 7 | . 3 4 . Fabricators . | . . . . Repair Stations . | . . . . Recycling Units 1 | . 1 . . Scanalyzers . | . . . . Garrison Access . | . . . . Terminal Hacks . | . . . . Fabricator Hacks . | . . . . Repair Station Hacks . | . . . . Recycling Unit Hacks 1 | . 1 . . Report Inventory 1 | . 1 . . Scanalyzer . | . . . . Garrison Access Hacks . | . . . . Unauthorized Hacks 3 | . 1 2 . Terminals 3 | . 1 2 . Assimilate 2 | . . 2 . Botnet 1 | . 1 . . Fabricators . | . . . . Repair Stations . | . . . . Recycling Units . | . . . . Scanalyzers . | . . . . Garrison Access . | . . . . Data Cores Recovered . | . . . . Used . | . . . . Hacking Detections 1 | . 1 . . Full Trace Events . | . . . . Feedback Events . | . . . . Feedback Blocked . | . . . . Robot Schematics Acquired . | . . . . Robots Built . | . . . . Authchips . | . . . . Time . | . . . . Total Robot Build Rating . | . . . . Part Schematics Acquired . | . . . . Parts Built . | . . . . Authchips . | . . . . Time . | . . . . Total Part Build Rating . | . . . . Parts Repaired . | . . . . Time . | . . . . Parts Recycled . | . . . . Recycled Matter . | . . . . Retrieved Matter . | . . . . Retrieved Components . | . . . . Parts Scanalyzed . | . . . . Part Schematics Acquired . | . . . . Parts Damaged . | . . . . Bothacking | -11 -10 -9 -9 ------------ Run | Yrd Mat Mat Min Used RIF Installer . | . . . . Robots Hacked . | . . . . Non-combat . | . . . . Combat . | . . . . Robot Hacks Applied . | . . . . Relay Couplers Released . | . . . . Fabnet Peak Effective % . | . . . . Robots Rewired . | . . . . Allies Hacked . | . . . . Hacks Repelled . | . . . . Allies | -11 -10 -9 -9 -------- Run | Yrd Mat Mat Min Total Allies . | . . . . Largest Group . | . . . . Highest-Rated Group . | . . . . Highest-Rated Ally . | . . . . Total Orders . | . . . . Ally Attacks . | . . . . Total Damage . | . . . . Kills . | . . . . Allies Corrupted . | . . . . Allies Melted . | . . . . Intel | -11 -10 -9 -9 ------- Run | Yrd Mat Mat Min Active Infowar (turns) 971 | . . 755 216 Optics 971 | . . 755 216 Robot Analysis Total . | . . . . Derelict Logs Recovered . | . . . . Drone Launches . | . . . . Drone Recoveries . | . . . . Exploration | -11 -10 -9 -9 ------------- Run | Yrd Mat Mat Min Turns Passed 1860 | 66 762 801 231 Spaces Moved 787 | 43 296 359 89 Core 18 | 14 . 4 . Treads 708 | 29 296 294 89 Legs . | . . . . Wheels . | . . . . Hover . | . . . . Flight 61 | . . 61 . Fastest Speed 50 | 50 160 160 160 Average Speed 161 | 124 160 168 160 Slowest Speed 280 | 160 160 280 160 Overloaded Moves . | . . . . Propulsion Burnouts . | . . . . Robots Hopped . | . . . . Potential Cave-ins . | . . . . Cave-ins Triggered . | . . . . Exploration Rate (%) 23 | 3 33 28 29 Regions Visited 3 Branch Regions 1 Pre-discovered Areas . | . . . . Known Exits Taken . | . . . . Unknown Exits Taken 3 | 1 1 1 . Scrap Searched 1 | . . . 1 Spaces Dug . | . . . . Terrain Destroyed . | . . . . Melee . | . . . . Projectile . | . . . . AOE . | . . . . Terrain Rammed . | . . . . Walls Destroyed . | . . . . Machines Disabled . | . . . . Actions | -11 -10 -9 -9 --------- Run | Yrd Mat Mat Min Total 1136 | 56 463 480 137 Wait 124 | . 66 39 19 Move 784 | 42 295 358 89 Hop . | . . . . Pick Up 35 | 8 8 16 3 Fast Attach . | . . . . Attach 18 | 6 1 8 3 Detach . | . . . . Swap 9 | . 3 6 . Drop 5 | . 1 4 . Fire 134 | . 73 38 23 Melee . | . . . . Ram 2 | . . 2 . Kick . | . . . . Crush 25 | . 16 9 . Escape Stasis . | . . . . Rewire . | . . . . Trap . | . . . . Miscellaneous . | . . . . Route ------- -11/Scrapyard -10/Materials -9/Materials -9/Mines (discovered 1 exit: [*Mat]) History --------- Turn | Location | Event 17 | -11/Scrapyard | Discovered new exit (range 15) 67 | -11/Scrapyard | Entered Materials 320 | -10/Materials | Build established: Mutant 779 | -10/Materials | Discovered new exit (range 3) 829 | -10/Materials | Entered another Materials area 829 | -9/Materials | Evolved 2 slots: Propulsion x1, Utility x1 1171 | -9/Materials | Lost 3 parts (1u2w) 1475 | -9/Materials | Build established: Scavenger-Mutant 1572 | -9/Materials | Discovered new exit (range 6) 1630 | -9/Materials | Entered Mines 1711 | -9/Mines | Discovered new exit (range 10) 1734 | -9/Mines | A weapon hastily lodged in a ceiling crevice suddenly fell to the ground 1832 | -9/Mines | Assembled infested the area 1837 | -9/Mines | Assisted by a Guerilla fighting off Assembled 1847 | -9/Mines | Core integrity fell below 50% 1853 | -9/Mines | Core integrity fell below 20% 1861 | -9/Mines | Destroyed by as-02831 with Assembled F-torch Last Messages --------------- dispatching Demolisher response squad. 01837_ A derelict emerges from the shadows: "You need to get out of here! I've been tracking a group of Assembled to figure out where they're coming from, and they're closing on this area, come on!" 01838_ 48-NQW(h): "I'll hold them off! Go on ahead or try to find another way!" 01841_ 48-NQW(h) suffers critical hit (Destroy). 01843_ Lgt. Treads destroyed. 01844_ as-70724 destroyed. 01845_ Lgt. Treads destroyed. 01846_ Visual Processing Unit destroyed. 01853_ Hvy. Assault Rifle destroyed. 01854_ Critical hit (Burn: +80). 01855_ Lgt. Treads destroyed. 01855_ as-62143 destroyed. 01857_ Critical hit (Burn: +80). 01858_ as-14196 destroyed. 01860_ as-56556 destroyed. Map ----- +----------------------------------------------------+ | | | | | ???????????????????????????????????????????????? | | ???????????????????????????????????????????????? | | ???????????????????????????????????????????????? | | ???????????????????????????????????????????????? | | ???????????????????????????????????????????????? | | ???????????????????????????????????????????????? | | ???????????????????????????????????????????????? | | ???????????????????????????????????????????????? | | ???????????????????????????????????????????????? | | ???????????????????????????????????????????????? | | ??????????????#"???????????????????????????????? | | ?????????????## a??????????????????????????????? | | ?????????????# ?????????????????????????????? | | ?????????????# ????????????????????????????? | | ??????????????# ????????????????????????????? | | ??????????????# ???????????????????????????? | | ??????????????# #??#####???????????????????? | | ??????????????# aa %### ##??????????????????? | | ???????????????? aa #??????????????????? | | ?????????????????? aa #??????????????????? | | ???????????????????# a a #??????????????????? | | ????????????????????#a% #??????????????????? | | ????????????????????# % #???????????????????? | | ?????????????????????# a@#????????????????????? | | ?????????????????????### #????????????? ##????? | | ??????????????????###### #??????????? #????? | | ??????????????????# ####??????? ?????? | | ??????????????????# #### ##???? ????????? | | ??????????????????????# #### #??????????? | | ??????????????????????# #??????????? | | ??????????????????????## #??????????? | | ???????????????????????### #######??????????? | | ?????????????????????????## ##???????????????? | | ??????????????????????????# ###?????????????? | | ??????????????????????????## ##????????????? | | ???????????????????????????## #????????????? | | ????????????????????????????## #???###??????? | | ?????????????????????????????## ##?# ##?????? | | ??????????????????????????????## ## #?????? | | ???????????????????????????????# = #?????? | | ??????????????????######???????## == ##?????? | | ????????????????### ########?##=*%# #??????? | | ???????????????## ## ##?## #? #??????? | | ???????????????# #### #?? ?????? | | ???????????????# #??? ????? | | ???????????????# #???? ??? | | ???????????????# #### ##?????? #?? | | ???????????????## ### ### #??????????? | +----------------------------------------------------+ Best States ------------- Heat Dissipation 38 Energy Generation 12 Energy Capacity 265 Matter Stores 394 Matter Capacity 400 Sight Range 18 Terrain Scan Density 10 Armor Coverage 150 Evasion (%) 50 Recoil Reduction 3 Offensive Hacking 10 Item Schematics ----------------- None Robot Schematics ------------------ None Fabricated ------------ Nothing Repaired ---------- Nothing Alien Tech Used ----------------- None Achievements -------------- None Challenges ------------ None Game ------ Seed AbsorptionRemoteCasing Manual? 0 Play Time 00:21:01 Cumulative 27.8 hours Start 2025.08.03 @ 05:46:09 End 2025.08.05 @ 07:35:18 Sessions 3 Manual Loads 0 Difficulty Rogue Special Mode None Game No. 51 Rogue 51 Adventurer 0 Explorer 0 Win Type - Total 0 Types 0/0/0/0/0/0/0/0/0/0 Lore% 20 Gallery% 19 Achievement% 21 Wizard Run 0 Options --------- Layout 1 ASCII 0 Keyboard 0 Movement Numpad Keybinds 0 Fullscreen 1 Font 32/SmallcapsGlow Map View 50x35 Zoom Use 0% Tactical HUD 1 Map Filters NONE Filters NONE Steam 1 RUN: c28ad660-48af-46a2-8e88-fbb84665ef3c